bitfinex/quotes_ETHUSD_20250422
["timestamp","ask_amount","ask_price","bid_price","bid_amount"]
[1745343447676,6.64993562,1696.1,1695.6,10.97549828]
[1745343447975,6.64993562,1696.1,1695.6,5.01905707]
[1745343448150,5.89639442,1696.0,1695.6,3.0]
[1745343448351,5.8966011,1695.9,1695.6,3.0]
[1745343448541,0.7539,1696.1,1695.8,8.8967415]
[1745343448744,6.8342282,1696.1,1695.8,14.79341495]
[1745343448966,6.8342282,1696.1,1695.8,8.89667345]
[1745343449169,6.8342282,1696.1,1695.9,0.88966735]
[1745343449341,12.73026958,1696.1,1695.6,9.34325962]
[1745343449539,6.65062311,1695.9,1695.4,5.89818944]
[1745343449987,5.89742147,1695.7,1695.2,2.55599658]
[1745343450192,5.89742147,1695.7,1695.1,5.89922136]
[1745343450193,5.89818346,1695.5,1695.0,0.7768]
[1745343450489,6.8342282,1695.6,1695.0,0.7768]
[1745343450490,12.73203494,1695.6,1695.1,3.0]
[1745343450647,18.62993539,1695.6,1695.1,3.0]
[1745343450847,18.62993539,1695.6,1694.9,5.875]
[1745343450848,5.89843332,1695.4,1694.9,5.875]
[1745343451086,12.73242328,1695.5,1695.0,0.5901]
[1745343451270,5.89836682,1695.4,1694.9,7.13019564]
[1745343451584,5.89836682,1695.4,1694.9,13.03021285]
[1745343452041,12.73233562,1695.5,1694.9,13.03021285]
[1745343452239,5.89844061,1695.4,1694.9,7.13019564]
[1745343452475,13.66011972,1695.4,1694.9,7.13019564]
[1745343452684,7.76151823,1695.4,1694.9,1.25519564]
[1745343453055,6.8342282,1695.5,1695.0,0.05899446]
[1745343453264,6.8342282,1695.5,1695.0,5.89968189]
[1745343453588,6.0803282,1695.8,1695.6,5.89733715]
[1745343453794,0.7539,1695.9,1695.6,0.05896976]
[1745343453976,0.7539,1695.9,1695.5,8.95676355]
[1745343454161,0.7539,1695.9,1695.6,0.89567636]
[1745343454551,0.7539,1695.9,1695.7,8.89716477]
[1745343454751,6.8342282,1696.1,1695.7,8.89716477]
[1745343455065,6.8342282,1696.1,1695.7,3.0]
[1745343455267,5.89643757,1696.0,1695.7,3.0]
[1745343455477,5.89643757,1696.0,1695.6,3.0]
[1745343455785,5.89704054,1695.8,1695.4,3.7768]
[1745343455970,6.65094054,1695.8,1695.4,3.0]
[1745343456174,0.7539,1695.8,1695.4,3.0]
[1745343456484,6.65089405,1695.8,1695.4,3.0]
[1745343456686,0.7539,1695.8,1695.4,3.0]
[1745343456875,0.7539,1695.8,1695.4,3.88984143]
[1745343457182,0.7539,1695.8,1695.4,9.8469832]
[1745343457360,6.65023873,1696.0,1695.5,5.89786124]
[1745343457560,6.0803282,1695.9,1695.5,5.89786124]
[1745343457983,6.0803282,1695.9,1695.5,5.95677177]
[1745343458161,6.0803282,1695.9,1695.7,8.89708581]
[1745343458375,6.0803282,1695.9,1695.7,3.0]
[1745343459383,6.0803282,1695.9,1695.6,3.59567718]
[1745343459689,6.0803282,1695.9,1695.5,6.73370856]
[1745343459690,6.651057,1695.8,1695.4,0.88984143]
[1745343459988,12.7313852,1695.8,1695.3,8.89844634]
[1745343460184,5.89776311,1695.6,1695.2,0.43091818]
[1745343460384,11.97809131,1695.6,1695.1,5.899249]
[1745343460584,11.97809131,1695.6,1695.2,3.0]
[1745343460891,5.89623066,1696.0,1695.2,3.0]
[1745343460892,0.2,1699.5,1698.6,5.88720122]
[1745343461050,0.2,1699.5,1697.4,6.71276308]
[1745343461051,0.30752125,1697.7,1697.4,6.71276308]
[1745343461250,0.30752125,1697.7,1697.5,0.67127631]
[1745343461479,11.75934249,1698.3,1697.2,5.99395929]
[1745343461787,5.8897771,1697.9,1697.1,3.0]
[1745343461960,6.103,1697.8,1697.1,3.0]
[1745343462293,6.42792611,1698.4,1697.1,3.0]
[1745343462294,5.89062911,1697.7,1697.1,3.0]
[1745343462452,5.89086805,1697.6,1697.1,3.0]
[1745343462805,0.58908681,1697.5,1697.1,3.0]
[1745343462997,11.99349578,1697.7,1697.1,3.0]
[1745343463298,17.88412995,1697.7,1697.1,3.0]
[1745343463594,11.99349578,1697.7,1697.1,3.0]
[1745343463962,6.68222723,1697.6,1697.1,3.0]
[1745343464157,0.7915,1697.6,1697.1,5.89221682]
[1745343465199,1.48095,1697.6,1697.1,0.0589161]
[1745343465396,0.68945,1697.6,1697.3,5.89154114]
[1745343465579,0.68945,1697.6,1697.4,5.89125384]
[1745343465783,0.68945,1697.6,1697.3,5.89151042]
[1745343466291,0.68945,1697.6,1696.9,3.8316]
[1745343466496,0.68945,1697.6,1697.2,3.0]
[1745343466853,0.68945,1697.6,1697.2,8.89202601]
[1745343467055,0.68945,1697.6,1697.2,3.0]
[1745343467507,0.68945,1697.6,1697.4,5.8913478]
[1745343467652,0.68945,1697.6,1697.3,5.89154488]
[1745343467894,0.68945,1697.6,1697.1,8.8921641]
[1745343468395,0.68945,1697.6,1697.1,8.89217065]
[1745343468638,0.68945,1697.6,1697.1,8.89208756]
[1745343468996,0.68945,1697.6,1697.4,5.89114961]
[1745343469226,0.68945,1697.6,1697.3,5.89166815]
[1745343469227,0.68945,1697.6,1697.3,5.89146433]
[1745343469438,0.68945,1697.6,1697.2,5.89184621]
[1745343469595,0.68945,1697.6,1697.3,5.89166871]
[1745343469799,0.68945,1697.6,1697.4,5.89112094]
[1745343470125,0.68945,1697.6,1697.5,5.8910162]
[1745343470298,6.103,1697.7,1697.6,5.89066918]
[1745343470900,0.7915,1697.9,1697.7,5.8901271]
[1745343471099,6.1,1698.1,1697.7,5.9489784]
[1745343471396,6.1,1698.1,1697.7,5.89002703]
[1745343471627,0.59928303,1698.0,1697.7,5.8902911]
[1745343471829,0.59928303,1698.0,1697.8,5.88985422]
[1745343472526,6.1,1698.1,1697.9,5.88960347]
[1745343472922,6.1,1698.1,1697.8,5.88987536]
[1745343473123,6.1,1698.1,1697.7,5.89010431]
[1745343473445,6.1,1698.1,1697.7,5.89006502]
[1745343473749,6.1,1698.1,1697.8,5.88990955]
[1745343473950,0.61,1698.0,1697.6,5.89051056]
[1745343474337,0.61,1698.0,1697.5,3.0]
[1745343474541,0.61,1698.0,1697.7,5.8900474]
[1745343474951,0.61,1698.0,1697.5,8.89085222]
[1745343475125,0.61,1698.0,1697.6,5.89052757]
[1745343475522,0.61,1698.0,1697.7,5.89027312]
[1745343475737,0.61,1698.0,1697.7,11.78042163]
[1745343475932,0.61,1698.0,1697.5,8.89087415]
[1745343476148,6.1,1698.1,1697.8,5.88970477]
[1745343477129,6.1,1698.1,1697.6,5.89053897]
[1745343477330,17.87828056,1698.1,1697.5,5.89082638]
[1745343477534,6.68128797,1697.9,1697.3,5.8914821]
[1745343477737,18.08811109,1697.8,1697.2,5.89191091]
[1745343477954,1.80881111,1697.7,1697.2,5.89191091]
[1745343478135,7.69925954,1697.7,1697.2,5.89191091]
[1745343478332,0.7915,1697.6,1697.1,11.78442318]
[1745343478560,0.7915,1697.6,1697.1,5.89219072]
[1745343478856,0.7915,1697.6,1697.2,5.89191938]
[1745343479025,1.64056472,1697.6,1697.2,5.89191938]
[1745343479226,1.64056472,1697.6,1697.3,5.89163108]
[1745343479427,0.7915,1697.6,1697.3,5.89163108]
[1745343480223,0.7915,1697.6,1697.2,5.89191938]
[1745343480458,0.7915,1697.6,1697.1,5.89220098]
[1745343480659,0.7915,1697.6,1697.2,5.89192329]
[1745343480859,0.7915,1697.6,1697.2,5.89204413]
[1745343481038,7.74057954,1697.6,1697.2,5.89204413]
[1745343481425,7.74057954,1697.6,1697.2,5.89182461]
[1745343481665,7.74057954,1697.6,1697.2,11.78365128]
[1745343481865,7.74057954,1697.6,1697.3,5.8917049]
[1745343482061,7.74057954,1697.6,1697.2,5.89182461]
[1745343482267,7.74057954,1697.6,1697.3,5.89152717]
[1745343483760,6.8915,1697.6,1697.1,0.05891651]
[1745343484063,11.9887223,1698.2,1697.6,5.89051961]
[1745343484370,0.7666,1698.1,1697.6,11.78095219]
[1745343484522,0.7666,1698.1,1697.7,5.89029249]
[1745343484725,6.1,1698.0,1697.7,5.89029249]
[1745343485035,6.78666,1698.0,1697.8,5.88974306]
[1745343485346,6.1,1698.0,1697.8,17.76545889]
[1745343485666,6.1,1698.0,1697.8,17.76545904]
[1745343485861,6.1,1698.0,1697.8,11.87571583]
[1745343486733,6.1,1698.0,1697.6,11.87659817]
[1745343486934,0.61,1697.9,1697.6,11.87641038]
[1745343487133,6.1,1698.0,1697.7,5.89022374]
[1745343487665,6.1,1698.0,1697.8,5.88982397]
[1745343487964,6.097,1698.2,1697.8,11.87579869]
[1745343488126,6.097,1698.2,1697.8,11.87572274]
[1745343488331,6.097,1698.2,1697.9,5.88953858]
[1745343488663,7.39336,1698.2,1697.9,5.88954833]
[1745343489242,6.097,1698.2,1697.9,5.88954833]
[1745343490341,6.097,1698.2,1697.9,5.88961817]
[1745343490550,6.097,1698.2,1697.8,5.98597472]
[1745343490777,11.9855973,1698.2,1697.8,5.98597472]
[1745343491079,0.7536,1698.0,1697.6,5.98597472]
[1745343491243,2.0278737,1698.0,1697.6,11.87659159]
[1745343491644,2.0278737,1698.0,1697.6,5.98597472]
[1745343491948,2.0278737,1698.0,1697.6,11.87650098]
[1745343493171,2.0278737,1698.0,1697.6,5.98597472]
[1745343493389,7.91721024,1698.0,1697.6,5.98597472]
[1745343493540,2.0278737,1698.0,1697.6,11.87658564]
[1745343493876,2.0278737,1698.0,1697.4,5.98597472]
[1745343494033,0.7536,1697.7,1697.4,5.98597472]
[1745343494234,6.8536,1697.7,1697.2,11.87781984]
[1745343494458,14.01841718,1697.7,1697.2,11.87781984]
[1745343494659,5.89073612,1697.6,1697.0,11.87845867]
[1745343494843,11.99073612,1697.6,1697.0,11.87845867]
[1745343495047,11.99073612,1697.6,1697.1,5.89237627]
[1745343495249,11.99066964,1697.6,1697.1,5.89237627]
[1745343495444,8.09090506,1697.6,1697.1,5.89220594]
[1745343495663,13.98162204,1697.6,1697.1,5.89220594]
[1745343496231,0.55,1697.5,1697.1,3.0]
[1745343496648,6.44118935,1697.5,1697.1,3.0]
[1745343497068,0.55,1697.5,1697.1,3.0]
[1745343497235,6.1,1697.6,1697.2,5.98597472]
[1745343497964,6.1,1697.6,1697.2,11.87802519]
[1745343498168,6.1,1697.6,1697.3,11.78318728]
[1745343498370,6.1,1697.6,1697.4,11.8773094]
[1745343498550,6.1,1697.8,1697.5,5.89086477]
[1745343498746,6.1,1697.8,1697.4,7.17370566]
[1745343498747,0.7536,1697.9,1697.7,5.8902196]
[1745343499071,6.1,1698.0,1697.7,11.78025024]
[1745343499246,6.8536,1698.1,1697.7,5.89008648]
[1745343500753,6.8536,1698.1,1697.8,11.87594998]
[1745343500954,6.1,1698.1,1697.9,5.88961303]
[1745343501275,5.981,1698.2,1697.9,5.8893858]
[1745343502564,6.8536,1698.3,1697.9,5.8893858]
[1745343502565,6.1,1698.6,1698.2,0.8249]
[1745343502876,6.105,1698.7,1698.4,5.98597472]
[1745343503058,0.005,1698.7,1698.6,5.88720122]
[1745343503370,0.005,1698.7,1698.5,5.94621429]
[1745343503673,0.005,1698.7,1698.5,5.88730682]
[1745343504170,0.005,1698.7,1698.3,3.0]
[1745343504369,0.005,1698.7,1698.3,9.8690905]
[1745343504670,0.005,1698.7,1698.3,3.0]
[1745343504969,0.005,1698.7,1698.4,5.88770846]
[1745343505170,0.005,1698.7,1698.4,5.88768131]
[1745343505398,0.005,1698.7,1698.5,5.88728356]
[1745343505574,0.005,1698.7,1698.4,11.8737268]
[1745343506171,0.005,1698.7,1698.4,11.8737242]
[1745343506351,0.005,1698.7,1698.4,5.88789262]
[1745343506678,0.005,1698.7,1698.4,5.88769396]
[1745343506882,1.14001807,1698.6,1698.3,8.88801805]
[1745343507078,1.14001807,1698.6,1698.3,5.88801805]
[1745343507587,1.14001807,1698.6,1698.3,5.88824118]
[1745343507752,1.14001807,1698.6,1698.2,12.69940661]
[1745343507957,0.005,1698.7,1698.6,8.88720122]
[1745343508149,0.005,1698.7,1698.6,14.87317594]
[1745343509196,0.005,1698.7,1698.6,15.30377135]
[1745343509399,0.005,1698.7,1698.6,9.41657013]
[1745343509567,0.005,1698.7,1698.5,3.0]
[1745343509769,0.005,1698.7,1698.6,8.98597472]
[1745343510410,0.005,1698.7,1698.4,5.88764299]
[1745343510411,0.005,1698.7,1698.4,5.98597472]
[1745343510580,6.48113507,1698.7,1698.2,5.98597472]
[1745343510910,6.72011937,1698.6,1698.2,5.98597472]
[1745343511199,6.72011937,1698.6,1698.1,5.98597472]
[1745343511502,5.88796294,1698.4,1698.1,5.98597472]
[1745343511669,5.88839095,1698.3,1697.9,5.98597472]
[1745343512197,5.88876756,1698.2,1697.9,5.98597472]
[1745343512510,5.88905928,1698.1,1697.7,5.98597472]
[1745343512678,5.88944288,1698.0,1697.6,5.98597472]
[1745343513002,11.98953494,1698.0,1697.6,5.98597472]
[1745343513403,11.98953494,1698.0,1697.5,12.62648986]
[1745343513569,11.98953494,1698.0,1697.5,14.8970229]
[1745343513770,6.1,1698.0,1697.7,5.89021033]
[1745343514069,6.1,1698.0,1697.6,5.89066918]
[1745343514267,6.1,1698.0,1697.5,14.89698726]
[1745343514268,11.98938359,1698.0,1697.5,14.89698726]
[1745343514680,17.87893531,1698.0,1697.5,9.00604868]
[1745343514884,6.1,1698.0,1697.6,5.89066623]
[1745343515070,6.1,1698.0,1697.6,1.48967149]
[1745343515271,6.1,1698.0,1697.8,6.73551564]
[1745343516268,6.1,1698.0,1697.7,3.0]
[1745343517770,6.1,1698.0,1697.7,8.94921691]
[1745343517988,6.1,1698.0,1697.7,3.05889553]
[1745343518313,6.1,1698.0,1697.7,3.0]
[1745343518511,6.1,1698.0,1697.7,4.09690529]
[1745343518669,6.1,1698.0,1697.9,8.88962836]
[1745343518869,6.9328,1698.7,1698.0,6.6852815]
[1745343519185,6.9328,1698.7,1698.3,5.88801619]
[1745343519493,6.9328,1698.7,1698.3,3.05887403]
[1745343519689,6.9328,1698.7,1698.3,4.54243948]
[1745343519895,12.81979245,1698.7,1698.3,4.48356545]
[1745343520194,12.81979245,1698.7,1698.3,3.0]
[1745343520704,6.9328,1698.7,1698.3,8.88813557]
[1745343520906,6.9328,1698.7,1698.3,8.94701201]
[1745343521092,6.9328,1698.7,1698.3,3.0]
[1745343521404,6.9328,1698.7,1698.3,8.88811834]
[1745343521603,6.9328,1698.7,1698.5,5.88733184]
[1745343521604,6.1,1698.7,1698.5,5.88733184]
[1745343521806,5.88631267,1698.9,1698.4,3.0]
[1745343522198,11.77273667,1698.9,1698.4,3.0]
[1745343522408,0.8129,1698.5,1698.1,6.73551564]
[1745343522705,0.8129,1698.5,1698.2,3.0]
[1745343522905,0.8129,1698.5,1698.2,3.8888818]
[1745343523114,11.98668249,1698.8,1698.3,6.77797375]
[1745343523273,17.87346296,1698.8,1698.3,0.831]
[1745343523469,0.8129,1698.7,1698.1,3.0]
[1745343523777,5.88780582,1698.5,1698.1,3.0]
[1745343523977,5.88807315,1698.4,1697.8,19.46331791]
[1745343524177,5.88893511,1698.1,1697.7,1.03800977]
[1745343524373,5.88893511,1698.1,1697.6,7.38013039]
[1745343524374,5.8893898,1698.0,1697.5,7.56651564]
[1745343524611,5.8901286,1697.8,1697.2,12.62743408]
[1745343524810,5.8901286,1697.8,1696.9,13.61651564]
[1745343524811,5.89072564,1697.6,1696.9,13.61651564]
[1745343524986,5.89072564,1697.6,1697.0,5.89255277]
[1745343524987,0.8129,1697.5,1697.0,5.89255277]
[1745343525181,0.8129,1697.5,1696.8,5.89328268]
[1745343525381,11.99151141,1697.4,1696.8,6.48257591]
[1745343525582,5.89205907,1697.2,1696.6,6.72483043]
[1745343525781,5.89197958,1697.3,1696.7,5.89357026]
[1745343525993,6.1,1697.4,1697.1,5.89218647]
[1745343526174,6.1,1697.4,1697.1,5.89210321]
[1745343526379,6.1,1697.4,1697.1,5.95102051]
[1745343526612,6.1,1697.4,1697.1,6.54612256]
[1745343527117,6.1,1697.4,1697.1,6.48720526]
[1745343527302,6.1,1697.4,1697.1,6.54612255]
[1745343527500,0.8129,1697.5,1697.1,3.65401934]
[1745343527704,6.1,1697.6,1697.3,5.89156088]
[1745343528054,12.80289854,1697.8,1697.2,5.89187147]
[1745343528179,15.27277414,1697.8,1697.2,5.89187147]
[1745343528511,6.9129,1697.8,1697.5,5.890723]
[1745343528709,6.1,1697.8,1697.2,3.44791261]
[1745343528878,6.1,1697.8,1697.4,3.0]
[1745343529279,6.1,1697.8,1697.4,8.89132397]
[1745343529511,11.99013564,1697.8,1697.1,0.43485548]
[1745343529717,5.89070793,1697.6,1697.2,3.0]
[1745343530012,7.0894598,1697.7,1697.3,5.8914048]
[1745343530013,6.9129,1697.5,1697.3,5.8914048]
[1745343530213,6.9129,1697.5,1697.2,5.89187818]
[1745343530417,6.1,1697.5,1697.3,5.89157306]
[1745343530582,6.1,1697.5,1697.4,5.89136326]
[1745343530785,6.1,1697.5,1697.4,7.06965689]
[1745343530980,6.1,1697.5,1697.4,5.89136326]
[1745343531285,6.1,1697.5,1697.3,5.89157306]
[1745343531695,6.1,1697.5,1697.3,3.0]
[1745343532523,6.1,1697.5,1697.1,3.0]
[1745343532822,6.1,1697.5,1697.1,8.89231735]
[1745343532982,7.29908399,1697.5,1697.2,5.89205633]
[1745343533183,6.1,1697.5,1697.2,5.89185326]
[1745343533418,6.1,1697.5,1697.2,11.78366364]
[1745343533627,6.1,1697.5,1697.3,5.89160474]
[1745343533821,0.8129,1697.8,1697.4,3.05891124]
[1745343534118,0.8129,1697.8,1697.5,5.89069493]
[1745343534294,6.1,1697.9,1697.5,5.89069493]
[1745343534617,6.1,1697.9,1697.8,5.88997526]
[1745343534821,6.9129,1698.0,1697.6,5.89036596]
[1745343535394,6.9129,1698.0,1697.6,11.78081981]
[1745343535621,6.9129,1698.0,1697.6,5.89036596]
[1745343536081,6.1,1698.0,1697.6,0.05889993]
[1745343536287,6.1,1698.0,1697.6,5.89046461]
[1745343536489,6.1,1698.0,1697.5,12.62629932]
[1745343536725,6.1,1698.0,1697.6,5.89056999]
[1745343537424,0.30734929,1697.9,1697.6,11.78102816]
[1745343537600,0.30734929,1697.9,1697.7,5.89028595]
[1745343537795,0.30734929,1697.9,1697.7,5.89011555]
[1745343538120,6.1,1698.0,1697.7,5.89021883]
[1745343538327,0.8143,1698.2,1698.0,5.88914943]
[1745343538722,0.8143,1698.2,1697.9,5.88952736]
[1745343538723,0.8143,1698.2,1697.9,5.88939555]
[1745343539121,6.1,1698.4,1698.1,5.88866927]
[1745343539294,0.8143,1698.5,1698.2,5.88845371]
[1745343540131,0.8143,1698.5,1698.2,3.0]
[1745343540304,6.1,1698.6,1698.3,5.8880292]
[1745343540628,6.1,1698.6,1698.2,3.0]
[1745343540798,6.1,1698.6,1697.6,7.14205209]
[1745343540799,0.8143,1698.5,1697.6,7.14205209]
[1745343540999,0.8143,1698.1,1697.6,6.33415648]
[1745343541233,6.9143,1698.1,1697.6,5.89043635]
[1745343541529,14.08371805,1698.1,1697.5,11.87373752]
[1745343541697,14.08371805,1698.1,1697.5,11.87372406]
[1745343541894,19.97292036,1698.1,1697.5,11.87372406]
[1745343542131,14.08371805,1698.1,1697.5,17.76450073]
[1745343542337,14.08371805,1698.1,1697.6,3.0]
[1745343542545,1.40837181,1698.0,1697.6,3.0]
[1745343542727,1.40837181,1698.0,1697.6,8.89064994]
[1745343542916,6.9143,1698.1,1698.0,5.8892815]
[1745343543113,12.80230021,1698.4,1697.9,8.88948953]
[1745343543317,12.80221364,1698.4,1697.9,8.88948953]
[1745343543529,12.80221364,1698.4,1697.9,3.0]
[1745343543730,1.28022136,1698.3,1697.9,3.0]
[1745343544039,5.88893469,1698.1,1697.5,5.89097745]
[1745343544332,6.1,1698.0,1697.6,3.0]
[1745343544536,6.1,1698.0,1697.6,8.89062487]
[1745343544728,6.1,1698.0,1697.6,3.0]
[1745343544930,7.29891401,1698.0,1697.6,3.0]
[1745343545241,6.1,1698.0,1697.6,8.89059875]
[1745343545605,6.1,1698.0,1697.6,3.0]
[1745343545813,6.1,1698.0,1697.5,3.0]
[1745343546020,6.70423641,1697.9,1697.3,5.89139964]
[1745343546218,12.59418141,1697.9,1697.4,3.0]
[1745343546440,8.57365455,1697.9,1697.4,3.0]
[1745343546640,5.89007824,1697.8,1697.4,3.0]
[1745343546847,8.57365455,1697.9,1697.4,3.0]
[1745343546848,8.57364114,1697.9,1697.4,3.0]
[1745343547151,5.89003682,1697.8,1697.2,5.891855]
[1745343547449,8.57344818,1697.9,1697.4,5.891336]
[1745343547655,6.74735237,1697.8,1697.2,8.89183165]
[1745343548067,5.89083423,1697.6,1697.1,0.8078]
[1745343548253,5.89201225,1697.3,1696.7,5.89360623]
[1745343548436,6.1,1697.3,1696.9,3.0]
[1745343548633,6.1,1697.3,1696.6,0.8078]
[1745343548634,5.892242,1697.2,1696.6,6.7017387]
[1745343548959,6.70686788,1697.1,1696.6,1.9329176]
[1745343549166,6.9143,1697.1,1696.6,1.9329176]
[1745343549469,12.80672082,1697.1,1696.5,5.89435212]
[1745343549670,6.9143,1697.1,1696.5,5.89427109]
[1745343549960,12.80693197,1697.1,1696.5,5.89427109]
[1745343550121,12.80693197,1697.1,1696.5,11.78859229]
[1745343550460,0.8143,1696.8,1696.3,5.89490287]
[1745343550619,6.9143,1696.8,1696.3,13.80728875]
[1745343550819,6.1,1696.8,1696.6,5.89393627]
[1745343551257,6.1,1697.2,1696.8,5.89310321]
[1745343551457,0.7865,1697.3,1697.1,3.0]
[1745343551458,6.8865,1697.3,1697.1,3.0]
[1745343551677,12.8955,1697.5,1697.1,3.0]
[1745343551823,12.8955,1697.5,1697.2,5.89194056]
[1745343552028,12.8955,1697.5,1697.1,3.3]
[1745343552241,12.8955,1697.5,1697.1,9.19239276]
[1745343552861,12.8955,1697.5,1697.1,3.3]
[1745343553045,12.8955,1697.5,1697.2,5.89189087]
[1745343553240,12.8955,1697.5,1697.2,7.40023055]
[1745343553867,12.8955,1697.5,1697.2,1.50842243]
[1745343554069,12.8955,1697.5,1697.2,7.40042341]
[1745343554392,12.8955,1697.5,1697.2,7.40035676]
[1745343554670,12.8955,1697.5,1697.1,8.89224483]
[1745343554828,18.78678862,1697.5,1697.1,3.0]
[1745343555031,5.89148974,1697.4,1696.9,3.43429646]
[1745343555230,12.8955,1697.5,1697.0,3.0]
[1745343555430,18.78663844,1697.5,1697.0,8.89262419]
[1745343555678,18.78663844,1697.5,1697.0,4.52198077]
[1745343555985,12.8955,1697.5,1697.0,1.52198077]
[1745343556126,12.8955,1697.5,1696.9,0.43429646]
[1745343556331,12.8955,1697.5,1697.1,5.89236101]
[1745343556947,12.8955,1697.5,1697.1,3.0]
[1745343557127,12.8955,1697.5,1697.0,3.0]
[1745343557329,6.1,1697.4,1696.9,3.0]
[1745343557560,6.1,1697.4,1697.0,0.3]
[1745343557783,6.1,1697.4,1697.0,9.19263748]
[1745343558442,6.1,1697.4,1697.0,9.19255255]
[1745343559135,6.1,1697.4,1697.0,15.08512593]
[1745343559337,6.1,1697.4,1697.0,9.19255255]
[1745343560268,6.1,1697.4,1697.1,5.892361]
[1745343560751,6.1,1697.4,1697.0,9.19255255]
[1745343561574,6.1,1697.4,1697.0,15.08505276]
[1745343561761,6.1,1697.4,1697.1,5.89238062]
[1745343562501,6.1,1697.4,1697.1,5.89219133]
[1745343562792,6.1,1697.4,1697.1,6.81141046]
[1745343562999,6.1,1697.4,1697.2,5.89200365]
[1745343563198,12.8955,1697.5,1697.1,12.70366327]
[1745343563405,12.8955,1697.5,1697.1,6.81141046]
[1745343564202,12.8955,1697.5,1697.1,5.89219133]
[1745343565202,18.78652493,1697.5,1697.0,9.19253975]
[1745343565360,12.8955,1697.5,1697.0,8.8925156]
[1745343565561,12.8955,1697.5,1697.1,11.78466017]
[1745343565857,12.8955,1697.5,1697.1,5.89231106]
[1745343566092,18.78656436,1697.5,1697.0,8.89260694]
[1745343566283,15.36322595,1697.5,1697.1,5.89237592]
[1745343566609,15.36322595,1697.5,1697.3,5.89166029]
[1745343566610,12.8955,1697.5,1697.3,5.89166029]
[1745343566906,6.1,1697.5,1697.3,5.89166029]
[1745343567073,6.1,1697.5,1697.3,5.89159949]
[1745343567398,6.1,1697.8,1697.5,5.89081986]
[1745343567564,6.1,1697.8,1697.4,8.89115165]
[1745343567767,6.1,1697.8,1697.4,9.78026682]
[1745343567993,6.1,1697.8,1697.4,9.78026386]
[1745343568197,6.1,1697.8,1697.4,15.67141553]
[1745343568674,6.1,1697.8,1697.5,5.890984]
[1745343568867,6.1,1697.8,1697.4,15.67144617]
[1745343569087,6.1,1697.8,1697.4,9.78026386]
[1745343569276,6.1,1697.8,1697.4,9.78023251]
[1745343569801,6.1,1697.8,1697.7,5.8903222]
[1745343569959,6.8865,1698.0,1697.8,8.88986844]
[1745343570164,6.8865,1698.0,1697.8,3.0]
[1745343570383,6.8865,1698.0,1697.6,3.0]
[1745343570586,6.57829748,1697.9,1697.5,3.0]
[1745343570770,6.57852527,1697.9,1697.5,3.0]
[1745343571374,5.89012774,1697.8,1697.3,6.66680456]
[1745343571579,0.7865,1697.6,1697.2,11.89187467]
[1745343571896,0.7865,1697.6,1697.3,3.0]
[1745343572792,7.34487087,1697.6,1697.0,5.89254683]
[1745343572976,6.67717474,1697.6,1697.0,11.7850545]
[1745343573176,5.89152444,1697.4,1696.9,6.33067509]
[1745343573389,0.7865,1697.3,1696.9,6.33067509]
[1745343573587,0.7865,1697.3,1696.9,12.22355552]
[1745343573805,0.7865,1697.3,1696.9,14.34510038]
[1745343574299,0.7865,1697.3,1697.0,5.89272844]
[1745343575091,0.7865,1697.3,1696.9,8.45220848]
[1745343575403,0.7865,1697.3,1696.9,14.34506818]
[1745343575766,0.7865,1697.3,1696.9,8.45218775]
[1745343576801,0.7865,1697.3,1697.0,5.89271022]
[1745343577108,0.7865,1697.3,1697.0,5.89254851]
[1745343577266,0.7865,1697.3,1696.9,8.45235875]
[1745343577465,0.7865,1697.3,1696.9,8.45218952]
[1745343578297,0.7865,1697.3,1697.0,5.8927319]
[1745343578504,0.7865,1697.3,1696.9,8.45218952]
[1745343578705,0.7865,1697.3,1696.9,14.34505326]
[1745343579007,0.7865,1697.3,1697.0,5.8927062]
[1745343579308,0.7865,1697.3,1696.9,8.45218952]
[1745343579471,0.7865,1697.3,1696.9,14.34504636]
[1745343579809,0.7865,1697.3,1696.9,8.45225033]
[1745343580107,0.7865,1697.3,1696.9,8.51113909]
[1745343580406,0.7865,1697.3,1697.0,5.89274304]
[1745343581513,0.815,1697.5,1697.0,5.89274304]
[1745343581695,6.70617629,1697.5,1696.9,8.89282957]
[1745343581899,5.89149927,1697.4,1696.9,8.89282957]
[1745343582205,6.5621169,1697.4,1696.9,8.89282957]
[1745343582510,6.5621169,1697.4,1696.9,8.89305332]
[1745343582807,6.70681022,1697.3,1696.9,3.0]
[1745343583692,5.8921899,1697.2,1696.9,3.0]
[1745343584003,7.15198904,1697.2,1696.8,3.0]
[1745343584203,1.25990001,1697.2,1696.8,3.0]
[1745343584419,7.15204382,1697.2,1696.8,3.0]
[1745343584789,1.25990001,1697.2,1696.8,8.89314789]
[1745343584987,0.815,1697.3,1696.9,5.89308898]
[1745343585221,0.815,1697.3,1696.8,14.78650541]
[1745343585597,0.815,1697.3,1696.9,5.89306616]
[1745343585821,0.815,1697.3,1696.9,5.89292958]
[1745343586724,0.815,1697.3,1696.8,14.78645333]
[1745343586922,0.815,1697.3,1696.8,16.34262866]
[1745343587227,0.815,1697.3,1696.8,10.88941968]
[1745343587523,6.70673392,1697.3,1696.8,4.99620651]
[1745343587722,0.815,1697.3,1696.8,4.99620651]
[1745343587930,0.815,1697.3,1696.9,5.8928676]
[1745343588231,0.815,1697.3,1696.9,11.78577512]
[1745343588594,0.815,1697.3,1696.9,5.8928676]
[1745343589398,0.815,1697.3,1696.9,5.89286518]
[1745343589735,0.815,1697.3,1696.9,11.78575905]
[1745343590027,6.6305,1697.5,1697.0,5.99189312]
[1745343590191,6.6305,1697.5,1697.2,5.89194052]
[1745343591132,6.6305,1697.5,1697.1,9.7067022]
[1745343592535,6.6305,1697.5,1697.1,9.70657034]
[1745343593046,6.6305,1697.5,1697.1,3.0]
[1745343593047,12.52159962,1697.5,1697.1,3.0]
[1745343593212,1.25215996,1697.4,1697.0,5.89275047]
[1745343593932,5.89196787,1697.3,1696.8,0.44003118]
[1745343594127,5.89196787,1697.3,1696.7,6.70796886]